[Event "Titled Tuesday Blitz January 18 2022"]
[White "Harshavardhan G B"]
[Black "Rustemov, Alexander"]
[WhiteFideId "25059009"]
[BlackFideId "4119002"]
[WhiteElo "1831"]
[BlackElo "2881"]
[Result "1-0"]
[Round "10"]
[TimeControl "180+1"]
[Date "2022.01.18"]
[WhiteClock "0:01:20"]
[BlackClock "0:00:02"]

1. d4 {[%clk 0:02:59]}  d5 {[%clk 0:03:00]} 2. c4 {[%clk 0:02:59]}  dxc4 {[%clk 0:03:00]} 3. e4 {[%clk 0:02:59]}  Nf6 {[%clk 0:03:00]} 4. e5 {[%clk 0:02:58]}  Nd5 {[%clk 0:03:01]} 5. Bxc4 {[%clk 0:02:59]}  Nb6 {[%clk 0:03:01]} 6. Bd3 {[%clk 0:03:00]}  Nc6 {[%clk 0:03:02]} 7. Ne2 {[%clk 0:02:59]}  Be6 {[%clk 0:03:02]} 8. Nbc3 {[%clk 0:02:59]}  Qd7 {[%clk 0:03:03]} 9. Be3 {[%clk 0:02:57]}  O-O-O {[%clk 0:03:02]} 10. b3 {[%clk 0:02:55]}  Nxe5 {[%clk 0:03:00]} 11. Bb5 {[%clk 0:02:54]}  Nc6 {[%clk 0:02:57]} 12. O-O {[%clk 0:02:43]}  a6 {[%clk 0:02:57]} 13. Bd3 {[%clk 0:02:43]}  Bf5 {[%clk 0:02:50]} 14. Rc1 {[%clk 0:02:40]}  Bxd3 {[%clk 0:02:48]} 15. Qxd3 {[%clk 0:02:41]}  e6 {[%clk 0:02:49]} 16. Ne4 {[%clk 0:02:37]}  Ba3 {[%clk 0:02:38]} 17. Rc3 {[%clk 0:02:22]}  Nd5 {[%clk 0:02:33]} 18. Rc4 {[%clk 0:02:21]}  f5 {[%clk 0:02:22]} 19. Nc5 {[%clk 0:02:19]}  Bxc5 {[%clk 0:02:21]} 20. Rxc5 {[%clk 0:02:20]}  e5 {[%clk 0:01:58]} 21. Rfc1 {[%clk 0:02:13]}  Ndb4 {[%clk 0:01:44]} 22. Qc4 {[%clk 0:02:01]}  e4 {[%clk 0:01:30]} 23. Nf4 {[%clk 0:01:57]}  Nxa2 {[%clk 0:01:25]} 24. Ra1 {[%clk 0:01:50]}  Ncb4 {[%clk 0:01:11]} 25. Ne6 {[%clk 0:01:43]}  c6 {[%clk 0:01:09]} 26. Nxd8 {[%clk 0:01:42]}  Rxd8 {[%clk 0:01:09]} 27. Ra5 {[%clk 0:01:38]}  f4 {[%clk 0:00:40]} 28. Bxf4 {[%clk 0:01:37]}  Qxd4 {[%clk 0:00:40]} 29. Qxd4 {[%clk 0:01:37]}  Rxd4 {[%clk 0:00:39]} 30. h4 {[%clk 0:01:37]}  Nc3 {[%clk 0:00:28]} 31. Be5 {[%clk 0:01:35]}  Rd3 {[%clk 0:00:26]} 32. Bxc3 {[%clk 0:01:30]}  Rxc3 {[%clk 0:00:26]} 33. Re5 {[%clk 0:01:31]}  Rxb3 {[%clk 0:00:21]} 34. Re7 {[%clk 0:01:31]}  Nd5 {[%clk 0:00:15]} 35. Rxg7 {[%clk 0:01:30]}  c5 {[%clk 0:00:15]} 36. Rxh7 {[%clk 0:01:28]}  c4 {[%clk 0:00:15]} 37. h5 {[%clk 0:01:27]}  c3 {[%clk 0:00:15]} 38. Rc1 {[%clk 0:01:25]}  Nf4 {[%clk 0:00:12]} 39. Kh2 {[%clk 0:01:23]}  Ne2 {[%clk 0:00:12]} 40. Re1 {[%clk 0:01:21]}  c2 {[%clk 0:00:11]} 41. h6 {[%clk 0:01:22]}  Rb6 {[%clk 0:00:07]} 42. g4 {[%clk 0:01:22]}  c1=Q {[%clk 0:00:05]} 43. Rxc1+ {[%clk 0:01:21]}  Nxc1 {[%clk 0:00:06]} 44. g5 {[%clk 0:01:22]}  Nd3 {[%clk 0:00:06]} 45. Rg7 {[%clk 0:01:21]}  Nf4 {[%clk 0:00:02]} 46. h7 {[%clk 0:01:20]}  Ng6 {[%clk 0:00:01]} 47. Rxg6 {[%clk 0:01:19]}  Rxg6 {[%clk 0:00:02]} 48. h8=Q+ {[%clk 0:01:20]} 1-0


[Site "https://www.chess.com"]

[Event "Titled Tuesday Blitz January 18 2022"]
[White "Hjartarson, Johann"]
[Black "Shkapenko, Pavel"]
[WhiteFideId "2300044"]
[BlackFideId "4151933"]
[WhiteElo "2484"]
[BlackElo "2386"]
[Result "1-0"]
[Round "10"]
[TimeControl "180+1"]
[Date "2022.01.18"]
[WhiteClock "0:00:08"]
[BlackClock "0:00:04"]

1. d4 {[%clk 0:03:00]}  Nf6 {[%clk 0:02:55]} 2. c4 {[%clk 0:03:00]}  e6 {[%clk 0:02:55]} 3. Nf3 {[%clk 0:03:00]}  Bb4+ {[%clk 0:02:50]} 4. Nbd2 {[%clk 0:02:59]}  d5 {[%clk 0:02:50]} 5. Qa4+ {[%clk 0:02:57]}  Nc6 {[%clk 0:02:49]} 6. e3 {[%clk 0:02:57]}  Be7 {[%clk 0:02:35]} 7. a3 {[%clk 0:02:49]}  a5 {[%clk 0:02:27]} 8. Qc2 {[%clk 0:02:44]}  a4 {[%clk 0:02:22]} 9. Bd3 {[%clk 0:02:43]}  O-O {[%clk 0:02:13]} 10. O-O {[%clk 0:02:43]}  Bd7 {[%clk 0:02:13]} 11. e4 {[%clk 0:02:41]}  g6 {[%clk 0:02:12]} 12. cxd5 {[%clk 0:02:38]}  exd5 {[%clk 0:02:08]} 13. e5 {[%clk 0:02:38]}  Nh5 {[%clk 0:02:08]} 14. Re1 {[%clk 0:02:28]}  Nf4 {[%clk 0:02:00]} 15. Bf1 {[%clk 0:02:27]}  g5 {[%clk 0:02:00]} 16. h3 {[%clk 0:02:16]}  Qc8 {[%clk 0:01:55]} 17. b4 {[%clk 0:02:11]}  Bf5 {[%clk 0:01:10]} 18. Qc3 {[%clk 0:02:08]}  Nd8 {[%clk 0:01:11]} 19. Bb2 {[%clk 0:02:01]}  Nde6 {[%clk 0:01:11]} 20. Nh2 {[%clk 0:01:51]}  h5 {[%clk 0:01:09]} 21. f3 {[%clk 0:01:50]}  Qd7 {[%clk 0:01:03]} 22. Rac1 {[%clk 0:01:47]}  Rac8 {[%clk 0:01:00]} 23. Kh1 {[%clk 0:01:39]}  c6 {[%clk 0:00:49]} 24. Qe3 {[%clk 0:01:37]}  h4 {[%clk 0:00:45]} 25. Ng4 {[%clk 0:01:35]}  Nh5 {[%clk 0:00:42]} 26. Nh6+ {[%clk 0:01:25]}  Kh7 {[%clk 0:00:40]} 27. Nxf5 {[%clk 0:01:25]}  Nef4 {[%clk 0:00:41]} 28. Bd3 {[%clk 0:01:05]}  Kh8 {[%clk 0:00:38]} 29. Nxe7 {[%clk 0:01:04]}  Qxe7 {[%clk 0:00:38]} 30. Nf1 {[%clk 0:00:59]}  Qe6 {[%clk 0:00:37]} 31. Rc2 {[%clk 0:00:55]}  Rg8 {[%clk 0:00:37]} 32. Nh2 {[%clk 0:00:53]}  Ng3+ {[%clk 0:00:37]} 33. Kg1 {[%clk 0:00:53]}  Rce8 {[%clk 0:00:23]} 34. Ng4 {[%clk 0:00:51]}  f5 {[%clk 0:00:23]} 35. Nf2 {[%clk 0:00:42]}  Rgf8 {[%clk 0:00:22]} 36. b5 {[%clk 0:00:35]}  Nfh5 {[%clk 0:00:20]} 37. bxc6 {[%clk 0:00:33]}  bxc6 {[%clk 0:00:20]} 38. Bc3 {[%clk 0:00:33]}  Rg8 {[%clk 0:00:16]} 39. Bb4 {[%clk 0:00:32]}  Nf4 {[%clk 0:00:15]} 40. Rec1 {[%clk 0:00:28]}  Rc8 {[%clk 0:00:12]} 41. Ba6 {[%clk 0:00:24]}  Rc7 {[%clk 0:00:12]} 42. Bd6 {[%clk 0:00:21]}  Rcg7 {[%clk 0:00:12]} 43. Rxc6 {[%clk 0:00:19]}  g4 {[%clk 0:00:12]} 44. fxg4 {[%clk 0:00:13]}  fxg4 {[%clk 0:00:11]} 45. Qxf4 {[%clk 0:00:13]}  gxh3 {[%clk 0:00:11]} 46. Bf8 {[%clk 0:00:10]}  Ne2+ {[%clk 0:00:10]} 47. Bxe2 {[%clk 0:00:09]}  Rxg2+ {[%clk 0:00:11]} 48. Kh1 {[%clk 0:00:09]}  h2 {[%clk 0:00:04]} 49. Qxh4+ {[%clk 0:00:08]} 1-0


[Site "https://www.chess.com"]

[Event "Titled Tuesday Blitz January 18 2022"]
[White "Indjic, Aleksandar"]
[Black "Kavyev, Ruslan"]
[WhiteFideId "911925"]
[BlackFideId "34110981"]
[WhiteElo "2616"]
[BlackElo "2182"]
[Result "1-0"]
[Round "10"]
[TimeControl "180+1"]
[Date "2022.01.18"]
[WhiteClock "0:01:38"]
[BlackClock "0:00:44"]

1. e4 {[%clk 0:03:00]}  c5 {[%clk 0:02:56]} 2. Nf3 {[%clk 0:03:00]}  d6 {[%clk 0:02:55]} 3. d4 {[%clk 0:03:00]}  cxd4 {[%clk 0:02:56]} 4. Nxd4 {[%clk 0:03:00]}  Nf6 {[%clk 0:02:57]} 5. Nc3 {[%clk 0:03:00]}  a6 {[%clk 0:02:57]} 6. Bc4 {[%clk 0:03:00]}  e6 {[%clk 0:02:57]} 7. a3 {[%clk 0:02:59]}  Be7 {[%clk 0:02:55]} 8. Ba2 {[%clk 0:02:58]}  O-O {[%clk 0:02:55]} 9. Be3 {[%clk 0:02:56]}  Qc7 {[%clk 0:02:55]} 10. g4 {[%clk 0:02:55]}  Nc6 {[%clk 0:02:52]} 11. g5 {[%clk 0:02:54]}  Nd7 {[%clk 0:02:53]} 12. h4 {[%clk 0:02:52]}  Nde5 {[%clk 0:02:48]} 13. Qe2 {[%clk 0:02:47]}  b5 {[%clk 0:02:46]} 14. f4 {[%clk 0:02:40]}  Nc4 {[%clk 0:02:44]} 15. Bxc4 {[%clk 0:02:38]}  Nxd4 {[%clk 0:02:44]} 16. Bxd4 {[%clk 0:02:37]}  Qxc4 {[%clk 0:02:22]} 17. Qxc4 {[%clk 0:02:33]}  bxc4 {[%clk 0:02:23]} 18. O-O-O {[%clk 0:02:32]}  Bb7 {[%clk 0:02:20]} 19. Rh2 {[%clk 0:02:24]}  Rfe8 {[%clk 0:02:19]} 20. Be3 {[%clk 0:02:11]}  Rac8 {[%clk 0:02:08]} 21. h5 {[%clk 0:02:09]}  Red8 {[%clk 0:01:33]} 22. Rhd2 {[%clk 0:02:07]}  Bc6 {[%clk 0:01:26]} 23. f5 {[%clk 0:02:01]}  exf5 {[%clk 0:01:22]} 24. exf5 {[%clk 0:02:02]}  Bf3 {[%clk 0:01:23]} 25. Rf1 {[%clk 0:01:59]}  Bxh5 {[%clk 0:01:23]} 26. Nd5 {[%clk 0:01:42]}  Bf8 {[%clk 0:01:23]} 27. Rh2 {[%clk 0:01:42]}  g6 {[%clk 0:00:47]} 28. Nf6+ {[%clk 0:01:41]}  Kg7 {[%clk 0:00:44]} 29. Bd4 {[%clk 0:01:38]} 1-0


[Site "https://www.chess.com"]

[Event "Titled Tuesday Blitz January 18 2022"]
[White "Ivanisevic, Ivan"]
[Black "Costachi, Mihnea"]
[WhiteFideId "912417"]
[BlackFideId "1217518"]
[WhiteElo "2495"]
[BlackElo "2464"]
[Result "0-1"]
[Round "10"]
[TimeControl "180+1"]
[Date "2022.01.18"]
[WhiteClock "0:00:04"]
[BlackClock "0:01:03"]

1. e4 {[%clk 0:03:00]}  e5 {[%clk 0:02:59]} 2. Nf3 {[%clk 0:03:01]}  Nc6 {[%clk 0:03:00]} 3. Bc4 {[%clk 0:03:01]}  Bc5 {[%clk 0:02:59]} 4. c3 {[%clk 0:03:01]}  Nf6 {[%clk 0:02:59]} 5. d3 {[%clk 0:03:02]}  d6 {[%clk 0:02:59]} 6. Nbd2 {[%clk 0:02:53]}  h6 {[%clk 0:02:58]} 7. Bb3 {[%clk 0:02:52]}  a6 {[%clk 0:02:57]} 8. h3 {[%clk 0:02:50]}  Ba7 {[%clk 0:02:56]} 9. Nf1 {[%clk 0:02:47]}  Be6 {[%clk 0:02:56]} 10. Bc2 {[%clk 0:02:41]}  d5 {[%clk 0:02:56]} 11. Qe2 {[%clk 0:02:41]}  Qd6 {[%clk 0:02:57]} 12. Ng3 {[%clk 0:01:53]}  O-O-O {[%clk 0:02:57]} 13. O-O {[%clk 0:01:47]}  d4 {[%clk 0:02:52]} 14. Bd2 {[%clk 0:01:21]}  g5 {[%clk 0:02:51]} 15. Nf5 {[%clk 0:01:18]}  Bxf5 {[%clk 0:02:37]} 16. exf5 {[%clk 0:01:19]}  Rhe8 {[%clk 0:02:35]} 17. Bb3 {[%clk 0:01:01]}  Qd7 {[%clk 0:02:29]} 18. cxd4 {[%clk 0:00:55]}  exd4 {[%clk 0:02:23]} 19. Qd1 {[%clk 0:00:54]}  Re7 {[%clk 0:02:19]} 20. Rc1 {[%clk 0:00:47]}  Qxf5 {[%clk 0:02:17]} 21. Rxc6 {[%clk 0:00:46]}  bxc6 {[%clk 0:02:18]} 22. Bc4 {[%clk 0:00:42]}  g4 {[%clk 0:02:11]} 23. Nh4 {[%clk 0:00:41]}  Qh5 {[%clk 0:02:06]} 24. g3 {[%clk 0:00:41]}  gxh3 {[%clk 0:02:05]} 25. Qa4 {[%clk 0:00:23]}  Kd7 {[%clk 0:01:53]} 26. Rc1 {[%clk 0:00:20]}  h2+ {[%clk 0:01:42]} 27. Kg2 {[%clk 0:00:18]}  Ng4 {[%clk 0:01:34]} 28. Bxf7 {[%clk 0:00:08]}  Qb5 {[%clk 0:01:23]} 29. Qxb5 {[%clk 0:00:08]}  axb5 {[%clk 0:01:21]} 30. Bg6 {[%clk 0:00:09]}  Rf8 {[%clk 0:01:14]} 31. Bf4 {[%clk 0:00:09]}  Re2 {[%clk 0:01:09]} 32. Bf5+ {[%clk 0:00:06]}  Rxf5 {[%clk 0:01:08]} 33. Nxf5 {[%clk 0:00:07]}  Nxf2 {[%clk 0:01:04]} 34. Kf3 {[%clk 0:00:05]}  Rxb2 {[%clk 0:01:03]} 35. Re1 {[%clk 0:00:05]}  h1=Q+ {[%clk 0:01:02]} 36. Rxh1 {[%clk 0:00:04]}  Nxh1 {[%clk 0:01:03]} 0-1


[Site "https://www.chess.com"]

[Event "Titled Tuesday Blitz January 18 2022"]
[White "Jakubowska, Anna"]
[Black "Demin, Vladimir"]
[WhiteFideId "1121952"]
[BlackFideId "4167457"]
[WhiteElo "1924"]
[BlackElo "2483"]
[Result "1/2-1/2"]
[Round "10"]
[TimeControl "180+1"]
[Date "2022.01.18"]
[WhiteClock "0:00:13"]
[BlackClock "0:01:21"]

1. e4 {[%clk 0:03:00]}  Nf6 {[%clk 0:02:51]} 2. e5 {[%clk 0:03:00]}  Nd5 {[%clk 0:02:51]} 3. d4 {[%clk 0:03:01]}  d6 {[%clk 0:02:48]} 4. Nf3 {[%clk 0:03:01]}  dxe5 {[%clk 0:02:48]} 5. Nxe5 {[%clk 0:03:01]}  g6 {[%clk 0:02:48]} 6. c4 {[%clk 0:02:57]}  Nb6 {[%clk 0:02:44]} 7. Be3 {[%clk 0:02:34]}  Bg7 {[%clk 0:02:40]} 8. Nc3 {[%clk 0:02:35]}  O-O {[%clk 0:02:39]} 9. Be2 {[%clk 0:02:35]}  Be6 {[%clk 0:02:38]} 10. b3 {[%clk 0:02:29]}  c5 {[%clk 0:02:38]} 11. O-O {[%clk 0:02:28]}  cxd4 {[%clk 0:02:37]} 12. Bxd4 {[%clk 0:02:29]}  N6d7 {[%clk 0:02:31]} 13. Nxd7 {[%clk 0:02:24]}  Qxd7 {[%clk 0:02:31]} 14. Bxg7 {[%clk 0:02:23]}  Kxg7 {[%clk 0:02:32]} 15. Bf3 {[%clk 0:02:23]}  Nc6 {[%clk 0:02:30]} 16. Qxd7 {[%clk 0:02:19]}  Bxd7 {[%clk 0:02:30]} 17. Rad1 {[%clk 0:02:18]}  Rad8 {[%clk 0:02:30]} 18. Rd2 {[%clk 0:01:58]}  Bc8 {[%clk 0:02:27]} 19. Rfd1 {[%clk 0:01:57]}  Rxd2 {[%clk 0:02:27]} 20. Rxd2 {[%clk 0:01:58]}  e5 {[%clk 0:02:27]} 21. Nb5 {[%clk 0:01:54]}  a6 {[%clk 0:02:18]} 22. Bxc6 {[%clk 0:01:42]}  bxc6 {[%clk 0:02:17]} 23. Na7 {[%clk 0:01:42]}  c5 {[%clk 0:02:13]} 24. Nxc8 {[%clk 0:01:35]}  Rxc8 {[%clk 0:02:12]} 25. Rd6 {[%clk 0:01:35]}  a5 {[%clk 0:02:11]} 26. Ra6 {[%clk 0:01:29]}  Rd8 {[%clk 0:02:10]} 27. Kf1 {[%clk 0:01:30]}  Rd2 {[%clk 0:02:09]} 28. Rxa5 {[%clk 0:01:29]}  Kf6 {[%clk 0:02:09]} 29. a4 {[%clk 0:01:28]}  Rb2 {[%clk 0:02:08]} 30. Rb5 {[%clk 0:01:20]}  Kf5 {[%clk 0:02:08]} 31. a5 {[%clk 0:01:20]}  Ke4 {[%clk 0:02:08]} 32. a6 {[%clk 0:01:08]}  Ra2 {[%clk 0:02:07]} 33. Rxc5 {[%clk 0:01:05]}  Rxa6 {[%clk 0:02:07]} 34. Rc7 {[%clk 0:01:04]}  f5 {[%clk 0:02:04]} 35. g3 {[%clk 0:01:01]}  Kf3 {[%clk 0:02:01]} 36. Ke1 {[%clk 0:01:02]}  Ra2 {[%clk 0:01:58]} 37. Re7 {[%clk 0:00:54]}  e4 {[%clk 0:01:58]} 38. c5 {[%clk 0:00:53]}  Rb2 {[%clk 0:01:57]} 39. c6 {[%clk 0:00:50]}  Rxb3 {[%clk 0:01:57]} 40. Kd2 {[%clk 0:00:47]}  Rb6 {[%clk 0:01:55]} 41. c7 {[%clk 0:00:45]}  Rc6 {[%clk 0:01:55]} 42. Ke1 {[%clk 0:00:43]}  h5 {[%clk 0:01:53]} 43. h4 {[%clk 0:00:40]}  Rc2 {[%clk 0:01:51]} 44. Rg7 {[%clk 0:00:32]}  e3 {[%clk 0:01:47]} 45. fxe3 {[%clk 0:00:31]}  Kxe3 {[%clk 0:01:46]} 46. Kd1 {[%clk 0:00:31]}  Rc6 {[%clk 0:01:46]} 47. Rxg6 {[%clk 0:00:27]}  Rxc7 {[%clk 0:01:46]} 48. Rg5 {[%clk 0:00:27]}  Rf7 {[%clk 0:01:30]} 49. Ke1 {[%clk 0:00:20]}  Kf3 {[%clk 0:01:29]} 50. Kf1 {[%clk 0:00:19]}  f4 {[%clk 0:01:22]} 51. gxf4 {[%clk 0:00:18]}  Rxf4 {[%clk 0:01:22]} 52. Kg1 {[%clk 0:00:15]}  Rxh4 {[%clk 0:01:22]} 53. Rg6 {[%clk 0:00:13]}  Ra4 {[%clk 0:01:22]} 54. Rh6 {[%clk 0:00:10]}  h4 {[%clk 0:01:21]} 55. Kh2 {[%clk 0:00:10]}  Kg4 {[%clk 0:01:20]} 56. Rg6+ {[%clk 0:00:09]}  Kh5 {[%clk 0:01:20]} 57. Rg8 {[%clk 0:00:10]}  Ra2+ {[%clk 0:01:21]} 58. Kh3 {[%clk 0:00:10]}  Ra3+ {[%clk 0:01:21]} 59. Kh2 {[%clk 0:00:11]}  Ra5 {[%clk 0:01:21]} 60. Kh3 {[%clk 0:00:10]}  Ra3+ {[%clk 0:01:21]} 61. Kh2 {[%clk 0:00:11]}  Rb3 {[%clk 0:01:21]} 62. Kg2 {[%clk 0:00:10]}  Rb5 {[%clk 0:01:20]} 63. Kh2 {[%clk 0:00:10]}  Rb3 {[%clk 0:01:15]} 64. Kg2 {[%clk 0:00:10]}  Rc3 {[%clk 0:01:14]} 65. Kh2 {[%clk 0:00:10]}  Rc5 {[%clk 0:01:12]} 66. Kh3 {[%clk 0:00:10]}  Rg5 {[%clk 0:01:13]} 67. Rxg5+ {[%clk 0:00:09]}  Kxg5 {[%clk 0:01:13]} 68. Kh2 {[%clk 0:00:10]}  Kg4 {[%clk 0:01:14]} 69. Kg2 {[%clk 0:00:10]}  h3+ {[%clk 0:01:15]} 70. Kh2 {[%clk 0:00:11]}  Kh4 {[%clk 0:01:16]} 71. Kh1 {[%clk 0:00:11]}  Kg3 {[%clk 0:01:17]} 72. Kg1 {[%clk 0:00:12]}  Kf3 {[%clk 0:01:18]} 73. Kh2 {[%clk 0:00:12]}  Kg4 {[%clk 0:01:18]} 74. Kh1 {[%clk 0:00:12]}  Kg3 {[%clk 0:01:19]} 75. Kg1 {[%clk 0:00:13]}  h2+ {[%clk 0:01:20]} 76. Kh1 {[%clk 0:00:13]}  Kh3 {[%clk 0:01:21]} 1/2-1/2


[Site "https://www.chess.com"]

[Event "Titled Tuesday Blitz January 18 2022"]
[White "Jakubowski, Krzysztof"]
[Black "Cherniaiev, Tykhon"]
[WhiteFideId "1112848"]
[BlackFideId "14182360"]
[WhiteElo "2365"]
[BlackElo "2289"]
[Result "1-0"]
[Round "10"]
[TimeControl "180+1"]
[Date "2022.01.18"]
[WhiteClock "0:00:26"]
[BlackClock "0:00:08"]

1. e4 {[%clk 0:03:00]}  c5 {[%clk 0:02:56]} 2. Nc3 {[%clk 0:03:00]}  e6 {[%clk 0:02:50]} 3. Nge2 {[%clk 0:02:57]}  a6 {[%clk 0:02:50]} 4. d4 {[%clk 0:02:57]}  cxd4 {[%clk 0:02:50]} 5. Nxd4 {[%clk 0:02:57]}  Qc7 {[%clk 0:02:50]} 6. Bd3 {[%clk 0:02:57]}  Bb4 {[%clk 0:02:49]} 7. Bd2 {[%clk 0:02:53]}  Nf6 {[%clk 0:02:49]} 8. O-O {[%clk 0:02:52]}  Be7 {[%clk 0:02:49]} 9. Kh1 {[%clk 0:02:49]}  O-O {[%clk 0:02:49]} 10. f4 {[%clk 0:02:47]}  d6 {[%clk 0:02:49]} 11. Qe2 {[%clk 0:02:43]}  Nc6 {[%clk 0:02:35]} 12. Nxc6 {[%clk 0:02:37]}  bxc6 {[%clk 0:02:36]} 13. e5 {[%clk 0:02:37]}  Nd5 {[%clk 0:02:22]} 14. Ne4 {[%clk 0:01:34]}  f5 {[%clk 0:02:09]} 15. exf6 {[%clk 0:01:28]}  Nxf6 {[%clk 0:02:08]} 16. Ng5 {[%clk 0:01:24]}  Qd7 {[%clk 0:01:58]} 17. Rae1 {[%clk 0:01:17]}  Re8 {[%clk 0:01:18]} 18. Nxe6 {[%clk 0:01:11]}  Bf8 {[%clk 0:01:06]} 19. f5 {[%clk 0:01:09]}  d5 {[%clk 0:01:06]} 20. Bg5 {[%clk 0:01:04]}  Be7 {[%clk 0:01:04]} 21. Nxg7 {[%clk 0:00:58]}  Kxg7 {[%clk 0:01:03]} 22. Bxf6+ {[%clk 0:00:58]}  Kf8 {[%clk 0:00:53]} 23. Be5 {[%clk 0:00:48]}  Bf6 {[%clk 0:00:51]} 24. Bd6+ {[%clk 0:00:46]}  Be7 {[%clk 0:00:46]} 25. Bxe7+ {[%clk 0:00:39]}  Rxe7 {[%clk 0:00:45]} 26. Qh5 {[%clk 0:00:38]}  Qd6 {[%clk 0:00:19]} 27. f6 {[%clk 0:00:34]}  Rxe1 {[%clk 0:00:10]} 28. Qh6+ {[%clk 0:00:34]}  Ke8 {[%clk 0:00:09]} 29. Rxe1+ {[%clk 0:00:33]}  Kd8 {[%clk 0:00:09]} 30. Qg7 {[%clk 0:00:29]}  Be6 {[%clk 0:00:08]} 31. Qh8+ {[%clk 0:00:27]}  Kc7 {[%clk 0:00:07]} 32. Qxa8 {[%clk 0:00:28]}  Qb4 {[%clk 0:00:08]} 33. Qa7+ {[%clk 0:00:27]}  Kd6 {[%clk 0:00:08]} 34. Qe7# {[%clk 0:00:26]} 1-0


[Site "https://www.chess.com"]

[Event "Titled Tuesday Blitz January 18 2022"]
[White "Jary, Sergey"]
[Black "Chigaev, Maksim"]
[WhiteFideId "14110350"]
[BlackFideId "4108116"]
[WhiteElo "2260"]
[BlackElo "2502"]
[Result "0-1"]
[Round "10"]
[TimeControl "180+1"]
[Date "2022.01.18"]
[WhiteClock "0:01:33"]
[BlackClock "0:01:46"]

1. e4 {[%clk 0:03:00]}  e6 {[%clk 0:02:58]} 2. d4 {[%clk 0:03:00]}  d5 {[%clk 0:02:59]} 3. Nd2 {[%clk 0:03:00]}  c5 {[%clk 0:02:58]} 4. Ngf3 {[%clk 0:03:00]}  cxd4 {[%clk 0:02:57]} 5. Nxd4 {[%clk 0:03:00]}  Nc6 {[%clk 0:02:58]} 6. N4f3 {[%clk 0:02:50]}  Nf6 {[%clk 0:02:55]} 7. exd5 {[%clk 0:02:49]}  Nxd5 {[%clk 0:02:54]} 8. Nb3 {[%clk 0:02:47]}  Be7 {[%clk 0:02:53]} 9. Bd3 {[%clk 0:02:41]}  Ndb4 {[%clk 0:02:49]} 10. Bb5 {[%clk 0:02:34]}  Qxd1+ {[%clk 0:02:47]} 11. Kxd1 {[%clk 0:02:35]}  a6 {[%clk 0:02:45]} 12. Be2 {[%clk 0:02:32]}  e5 {[%clk 0:02:44]} 13. c3 {[%clk 0:02:30]}  Nd5 {[%clk 0:02:44]} 14. Kc2 {[%clk 0:02:27]}  Bf5+ {[%clk 0:02:41]} 15. Bd3 {[%clk 0:02:27]}  Ncb4+ {[%clk 0:02:41]} 16. cxb4 {[%clk 0:02:26]}  Nxb4+ {[%clk 0:02:42]} 17. Kd1 {[%clk 0:02:16]}  Nxd3 {[%clk 0:02:41]} 18. Ke2 {[%clk 0:02:15]}  O-O-O {[%clk 0:02:35]} 19. Be3 {[%clk 0:02:14]}  f6 {[%clk 0:02:17]} 20. Bb6 {[%clk 0:02:10]}  Nf4+ {[%clk 0:02:15]} 21. Kf1 {[%clk 0:02:01]}  Bd3+ {[%clk 0:02:09]} 22. Ke1 {[%clk 0:01:59]}  Nxg2+ {[%clk 0:02:00]} 23. Kd2 {[%clk 0:01:59]}  Bb4+ {[%clk 0:01:59]} 24. Kc1 {[%clk 0:01:54]}  Rd6 {[%clk 0:01:59]} 25. Bc5 {[%clk 0:01:41]}  Rc6 {[%clk 0:01:56]} 26. Rd1 {[%clk 0:01:42]}  Be2 {[%clk 0:01:53]} 27. a3 {[%clk 0:01:33]}  Bxc5 {[%clk 0:01:46]} 0-1


[Site "https://www.chess.com"]

[Event "Titled Tuesday Blitz January 18 2022"]
[White "Jocev, Milan"]
[Black "Lorparizangeneh, Shahin"]
[WhiteFideId "900680"]
[BlackFideId "12521604"]
[WhiteElo "2322"]
[BlackElo "2525"]
[Result "1-0"]
[Round "10"]
[TimeControl "180+1"]
[Date "2022.01.18"]
[WhiteClock "0:01:06"]
[BlackClock "0:00:54"]

1. Nf3 {[%clk 0:03:00]}  d5 {[%clk 0:02:54]} 2. d4 {[%clk 0:03:00]}  Nf6 {[%clk 0:02:53]} 3. Bf4 {[%clk 0:03:00]}  Bf5 {[%clk 0:02:50]} 4. e3 {[%clk 0:03:00]}  e6 {[%clk 0:02:50]} 5. Nbd2 {[%clk 0:02:59]}  Bd6 {[%clk 0:02:48]} 6. Bg3 {[%clk 0:02:59]}  Ne4 {[%clk 0:02:46]} 7. Nxe4 {[%clk 0:02:57]}  dxe4 {[%clk 0:02:45]} 8. Nd2 {[%clk 0:02:57]}  Nd7 {[%clk 0:02:45]} 9. Nc4 {[%clk 0:02:38]}  Bxg3 {[%clk 0:02:30]} 10. hxg3 {[%clk 0:02:38]}  Qf6 {[%clk 0:02:29]} 11. Qd2 {[%clk 0:02:30]}  O-O-O {[%clk 0:02:16]} 12. O-O-O {[%clk 0:02:21]}  e5 {[%clk 0:02:15]} 13. d5 {[%clk 0:02:03]}  Nb6 {[%clk 0:02:13]} 14. Nxb6+ {[%clk 0:01:53]}  Qxb6 {[%clk 0:02:10]} 15. c4 {[%clk 0:01:48]}  c6 {[%clk 0:02:02]} 16. Qc3 {[%clk 0:01:42]}  f6 {[%clk 0:01:59]} 17. c5 {[%clk 0:01:38]}  Qc7 {[%clk 0:01:55]} 18. d6 {[%clk 0:01:35]}  Qf7 {[%clk 0:01:56]} 19. Bc4 {[%clk 0:01:34]}  Be6 {[%clk 0:01:56]} 20. Bxe6+ {[%clk 0:01:31]}  Qxe6 {[%clk 0:01:57]} 21. Qa5 {[%clk 0:01:24]}  Kb8 {[%clk 0:01:41]} 22. Rxh7 {[%clk 0:01:19]}  Qf7 {[%clk 0:00:55]} 23. Rxh8 {[%clk 0:01:11]}  Rxh8 {[%clk 0:00:54]} 24. d7 {[%clk 0:01:06]} 1-0


[Site "https://www.chess.com"]

[Event "Titled Tuesday Blitz January 18 2022"]
[White "Kalogridis, Antonios"]
[Black "Manukyan, Artyom"]
[WhiteFideId "25833901"]
[BlackFideId "13305786"]
[WhiteElo "1495"]
[BlackElo "2034"]
[Result "1-0"]
[Round "10"]
[TimeControl "180+1"]
[Date "2022.01.18"]
[WhiteClock "0:01:35"]
[BlackClock "0:00:58"]

1. d4 {[%clk 0:03:00]}  d5 {[%clk 0:02:46]} 2. c4 {[%clk 0:02:59]}  e6 {[%clk 0:02:47]} 3. Nc3 {[%clk 0:02:58]}  Nf6 {[%clk 0:02:47]} 4. cxd5 {[%clk 0:02:58]}  exd5 {[%clk 0:02:48]} 5. Bg5 {[%clk 0:02:56]}  c6 {[%clk 0:02:49]} 6. e3 {[%clk 0:02:56]}  Qb6 {[%clk 0:02:48]} 7. Qc2 {[%clk 0:02:52]}  Ne4 {[%clk 0:02:47]} 8. Nxe4 {[%clk 0:02:37]}  dxe4 {[%clk 0:02:48]} 9. Qxe4+ {[%clk 0:02:37]}  Be6 {[%clk 0:02:46]} 10. O-O-O {[%clk 0:02:27]}  Qa5 {[%clk 0:02:45]} 11. Nf3 {[%clk 0:02:20]}  Qxa2 {[%clk 0:02:44]} 12. Qb1 {[%clk 0:02:17]}  Qxb1+ {[%clk 0:02:42]} 13. Kxb1 {[%clk 0:02:16]}  h6 {[%clk 0:02:41]} 14. Bf4 {[%clk 0:02:12]}  Be7 {[%clk 0:02:41]} 15. e4 {[%clk 0:02:11]}  Nd7 {[%clk 0:02:41]} 16. d5 {[%clk 0:02:10]}  cxd5 {[%clk 0:02:42]} 17. exd5 {[%clk 0:02:11]}  Bf5+ {[%clk 0:02:42]} 18. Bd3 {[%clk 0:02:11]}  Bxd3+ {[%clk 0:02:41]} 19. Rxd3 {[%clk 0:02:12]}  O-O {[%clk 0:02:41]} 20. Rc1 {[%clk 0:02:06]}  Nc5 {[%clk 0:02:33]} 21. Re3 {[%clk 0:01:58]}  Rfe8 {[%clk 0:02:05]} 22. d6 {[%clk 0:01:57]}  g5 {[%clk 0:01:46]} 23. Bg3 {[%clk 0:01:48]}  Ne6 {[%clk 0:00:58]} 24. dxe7 {[%clk 0:01:43]}  Rxe7 {[%clk 0:00:59]} 25. Nd4 {[%clk 0:01:43]}  Rd8 {[%clk 0:00:55]} 26. Nxe6 {[%clk 0:01:36]}  fxe6 {[%clk 0:00:56]} 27. Rc7 {[%clk 0:01:36]}  Rxc7 {[%clk 0:00:56]} 28. Bxc7 {[%clk 0:01:37]}  Rd7 {[%clk 0:00:56]} 29. Bg3 {[%clk 0:01:36]}  Kf7 {[%clk 0:00:57]} 30. Kc2 {[%clk 0:01:35]}  b6 {[%clk 0:00:57]} 31. Rd3 {[%clk 0:01:35]}  Rb7 {[%clk 0:00:56]} 32. Rc3 {[%clk 0:01:36]}  Kf6 {[%clk 0:00:56]} 33. Rc7 {[%clk 0:01:35]}  Rb8 {[%clk 0:00:56]} 34. Rxa7 {[%clk 0:01:36]}  Rc8+ {[%clk 0:00:57]} 35. Rc7 {[%clk 0:01:35]}  e5 {[%clk 0:00:58]} 36. Rxc8 {[%clk 0:01:35]} 1-0


[Site "https://www.chess.com"]